Workbook

Sheet Меню младшие 1-4 кл
B12: Согласовано | I12: Разработано и утвеждено
B13: Руководитель общеобразовательного учреждения | I13: Директор ООО "АБК-ПЭЙМЕНТ"
B15: ________________________ | I15: ________________Р.Р. Рахматуллин
B20: Примерное цикличное двенадцатидневное меню
B21: Для организации бесплатного горячего питания (горячих завтраков) для обучающихся начальных классов
B22: общеобразовательных организаций Республики Татарстан
B50: ПРИМЕРНОЕ ДВУХНЕДЕЛЬНОЕ МЕНЮ ДЛЯ ОБУЧАЮЩИХСЯ В ОБЩЕОБРАЗОВАТЕЛЬНЫХ ОРГАНИЗАЦИЯХ С 1 по 4 КЛАССЫ
J51: сезон (осенне-зимний)
A52: № рецептуры | B52: Наименование блюд | C52: Выход,г | D52: Белки, г | E52: Жиры, г | F52: Углеводы, г | G52: Калорийность, ккал | H52: Витамин B1, мг | I52: Витамин С, мг | J52: Витамин А, мг | K52: Витамин Е, мг | L52: Ca, мг | M52: P, мг | N52: Mg, мг | O52: Fe, мг
B53: 1-ая неделя
B54: 1 день
A55: ТТК | B55: Салат из моркови с яблоками | C55: 60 | D55: 0.64 | E55: 3.01 | F55: 5.11 | G55: 50.91 | H55: 0.03 | I55: 2.63 | J55: 0.00 | K55: 0.21 | L55: 14.40 | M55: 26.72 | N55: 18.23 | O55: 0.64
A56: ТТК | B56: Котлета из мяса птицы с макаронными изделиями отварными, с маслом сливочным | C56: 75/150/5 | D56: 11.45 | E56: 12.46 | F56: 31.32 | G56: 289.95 | H56: 0.10 | I56: 0.50 | J56: 23.90 | K56: 4.80 | L56: 31.70 | M56: 147.63 | N56: 38.18 | O56: 2.08
A57: №349 Сбор.рец. На прод-ию для обуч. Во всех образ.учреж-Дели 2017 | B57: Компот из сухофруктов (75С) | C57: 200 | D57: 0.66 | E57: 0.09 | F57: 22.03 | G57: 92.80 | H57: 0.02 | I57: 0.73 | J57: 0.00 | K57: 0.51 | L57: 32.18 | M57: 23.44 | N57: 17.46 | O57: 0.67
A58: Хим.состав и калорийность российских продуктов питания,табл 6, стр 144 , 2012 Дели + | B58: Хлеб ржаной | C58: 30 | D58: 1.98 | E58: 0.36 | F58: 11.88 | G58: 59.40 | H58: 0.05 | I58: 0.00 | J58: 0.00 | K58: 0.42 | L58: 8.70 | M58: 45.00 | N58: 14.10 | O58: 1.17
B59: Итого: | C59: 520 | D59: =SUM(D55:D58) -> 14.73 | E59: =SUM(E55:E58) -> 15.92 | F59: 70.35 | G59: 493.06 | H59: 0.20 | I59: 3.85 | J59: 23.90 | K59: 5.93 | L59: 86.97 | M59: 242.79 | N59: 87.97 | O59: 4.55 | P59: 20%
B61: 2 день
A62: Хим.состав и калорийность российских продуктов питания табл 9 стр 184 , 2012 Дели + | B62: Плоды и ягоды свежие (яблоки) | C62: 100 | D62: 0.40 | E62: 0.40 | F62: 9.80 | G62: 47.00 | H62: 0.03 | I62: 10.00 | K62: 0.20 | L62: 16.00 | M62: 11.00 | N62: 9.00 | O62: 2.20
A63: ТТК | B63: Сырники из творога с кашей молочной "Дружба" с маслом сливочным | C63: 60/150/5 | D63: 10.55 | E63: 11.85 | F63: 39.40 | G63: 324.45 | H63: 0.11 | I63: 0.88 | J63: 65.30 | K63: 1.83 | L63: 314.60 | M63: 252.49 | N63: 41.76 | O63: 1.01
A64: № 379 Сбор.рец. На прод-ию для обуч. Во всех образ.учреж-Дели 2017 | B64: Кофейный напиток с молоком | C64: 200 | D64: 3.2 | E64: 2.7 | F64: 6.0 | G64: 60.7 | H64: 0.0 | I64: 1.3 | J64: 20.0 | K64: 0.0 | L64: 125.8 | M64: 90.0 | N64: 14.0 | O64: 0.1
A65: Хим.состав и калорийность российских продуктов питания,табл 6, стр 144 , 2012 Дели + | B65: Хлеб ржаной | C65: 30 | D65: 1.98 | E65: 0.36 | F65: 11.88 | G65: 59.40 | H65: 0.05 | I65: 0.00 | J65: 0.00 | K65: 0.42 | L65: 8.70 | M65: 45.00 | N65: 14.10 | O65: 1.17
B66: Итого: | C66: =C62+215+200+C65 -> 545 | D66: =SUM(D62:D65) -> 16.10 | E66: =SUM(E62:E65) -> 15.29 | F66: 67.08 | G66: 491.55 | H66: 0.24 | I66: 12.18 | J66: 85.30 | K66: 2.45 | L66: 465.08 | M66: 398.49 | N66: 78.86 | O66: 4.51 | P66: 20%
B69: 3 день
A70: № 15 Сбор.рец. На прод-ию для обуч. Во всех образ.учреж-Дели -2017 | B70: Сыр порционно | C70: 10 | D70: 2.63 | E70: 2.66 | F70: 0.00 | G70: 34.33 | H70: 0.00 | I70: 0.07 | J70: 21.00 | K70: 0.04 | L70: 100.00 | M70: 60.00 | N70: 5.50 | O70: 0.07
A71: № 260 Сбор.рец. На прод-ию для обуч. Во всех образ.учреж-Дели -2017 | B71: Гуляш из говядины | C71: 50/50 | D71: 10.39 | E71: 14.79 | F71: 10.30 | G71: 221.00 | H71: 0.03 | I71: 0.92 | K71: 2.61 | L71: 61.81 | M71: 154.15 | N71: 22.03 | O71: 3.06
A72: № 171 Сбор.рец. На прод-ию для обуч. Во всех образ.учреж-Дели 2017 | B72: Каша гречневая рассыпчатая | C72: 150 | D72: 3.77 | E72: 2.29 | F72: 39.72 | G72: 214.00 | H72: 0.21 | I72: 0.00 | J72: 0.00 | K72: 0.40 | L72: 23.99 | M72: 207.35 | N72: 140.52 | O72: 4.71
A73: № 377 Сбор.рец. На прод-ию для обуч. Во всех образ.учреж-Дели 2017 | B73: Чай с сахаром, с лимоном | C73: 185/10/5 | D73: 0.11 | E73: 0.02 | F73: 10.15 | G73: 41.32 | H73: -0.00 | I73: 2.03 | J73: 0.00 | K73: 0.01 | L73: 13.25 | M73: 3.96 | N73: 2.16 | O73: 0.33
A74: Хим.состав и калорийность российских продуктов питания табл 6 стр 134 , 2012 Дели + | B74: Хлеб ржаной | C74: 50 | D74: 3.30 | E74: 0.60 | F74: 19.80 | G74: 99.00 | H74: 0.09 | I74: 0.00 | J74: 0.00 | K74: 0.70 | L74: 14.50 | M74: 75.00 | N74: 23.50 | O74: 1.95
B75: Итого: | C75: 510 | D75: =SUM(D70:D74) -> 20.20 | E75: =SUM(E70:E74) -> 20.36 | F75: 79.97 | G75: 609.65 | H75: 0.33 | I75: 3.02 | J75: 21.00 | K75: 3.76 | L75: 213.55 | M75: 500.46 | N75: 193.71 | O75: 10.12 | P75: 25%
B82: 4 день
A83: ТТК Хим.состав и калорийность российских продуктов питания,табл 8, стр 168 , 2012 Дели +, | B83: Свекла отварная дольками | C83: 60 | D83: 1.08 | E83: 0.06 | F83: 5.88 | G83: 28.80 | H83: 0.01 | I83: 5.34 | J83: 0.00 | K83: 0.06 | L83: 27.00 | M83: 30.60 | N83: 15.60 | O83: 1.02
A84: ТТК | B84: Птица запеченная | C84: 100 | D84: 10.52 | E84: 12.43 | F84: 8.65 | G84: 192 | H84: 0.06 | I84: 1.28 | J84: 51.8 | K84: 0.8 | L84: 41.26 | M84: 216.4 | N84: 23.42 | O84: 1.78
A85: № 312 Сбор.рец. На прод-ию для обуч. Во всех образ.учреж-Дели -2017 | B85: Пюре картофельное с маслом сливочным | C85: 150/3 | D85: 3.08 | E85: 6.25 | F85: 20.47 | G85: 150.45 | H85: 0.14 | I85: 18.16 | J85: 8.00 | K85: 0.20 | L85: 37.46 | M85: 87.20 | N85: 27.75 | O85: 1.01
A86: №349 Сбор.рец. На прод-ию для обуч. Во всех образ.учреж-Дели 2017 | B86: Компот из сухофруктов (75С) | C86: 200 | D86: 0.66 | E86: 0.09 | F86: 22.03 | G86: 92.80 | H86: 0.02 | I86: 0.73 | J86: 0.00 | K86: 0.51 | L86: 32.18 | M86: 23.44 | N86: 17.46 | O86: 0.67
A87: Хим.состав и калорийность российских продуктов питания табл 6 стр 134 , 2012 Дели + | B87: Хлеб пшеничный | C87: 30 | D87: 2.28 | E87: 0.24 | F87: 14.76 | G87: 70.50 | H87: 0.03 | I87: 0.00 | J87: 0.00 | K87: 0.33 | L87: 6.00 | M87: 19.50 | N87: 4.20 | O87: 0.33
A88: Хим.состав и калорийность российских продуктов питания,табл 6, стр 144 , 2012 Дели + | B88: Хлеб ржаной | C88: 40 | D88: =D74*0.8 -> 2.64 | E88: =E74*0.8 -> 0.48 | F88: 15.84 | G88: 79.20 | H88: 0.07 | I88: 0.00 | J88: 0.00 | K88: 0.56 | L88: 11.60 | M88: 60.00 | N88: 18.80 | O88: 1.56
B89: Итого: | C89: 583 | D89: =SUM(D83:D88) -> 20.26 | E89: 19.55 | F89: 87.63 | G89: 613.75 | H89: 0.33 | I89: 25.51 | J89: 59.80 | K89: 2.46 | L89: 155.50 | M89: 437.14 | N89: 107.23 | O89: 6.37 | P89: 25%
B91: 5 день
A92: № 15 Сбор.рец. На прод-ию для обуч. Во всех образ.учреж-Дели 2017 | B92: Сыр порционно | C92: 15 | D92: 3.95 | E92: 3.99 | F92: 0.00 | G92: 51.50 | H92: 0.01 | I92: 0.11 | J92: 31.50 | K92: 0.06 | L92: 150.00 | M92: 90.00 | N92: 8.25 | O92: 0.11
A93: №279,331 Сбор.рец. На прод-ию для питания детей в дошк образоват учрежд-Дели 2017 | B93: Тефтели мясные в сметанно-томатном соусе | C93: 60/40 | D93: 7.284 | E93: 11.940 | F93: 8.360 | G93: 124 | H93: 0.048 | I93: 0.276 | J93: 29.620 | K93: 0.421 | L93: 20.726 | M93: 80.202 | N93: 15.521 | O93: 0.640
A94: № 203 Сбор.рец. На прод-ию для обуч. Во всех образ.учреж-Дели 2017 | B94: Макаронные изделия отварные с маслом сливочным | C94: 180/5 | D94: 5.10 | E94: 3.62 | F94: 31.96 | G94: 176.10 | H94: 0.06 | I94: 0.00 | J94: 12.00 | K94: 0.80 | L94: 11.91 | M94: 38.07 | N94: 8.62 | O94: 0.86
A95: ТТК | B95: Напиток из свежих фруктов (75С) | C95: 200 | D95: 0.34 | E95: 0.17 | F95: 21.46 | G95: 103.50 | H95: 0.02 | I95: 3.17 | J95: 0.00 | K95: 0.13 | L95: 16.67 | M95: 7.05 | N95: 7.78 | O95: 0.88
A96: Хим.состав и калорийность российских продуктов питания табл 6 стр 134 , 2012 Дели + | B96: Хлеб пшеничный | C96: 45 | D96: =D87*1.5 -> 3.42 | E96: 0.36 | F96: 22.14 | G96: 105.75 | H96: 0.05 | I96: 0.00 | J96: 0.00 | K96: 0.50 | L96: 9.00 | M96: 29.25 | N96: 6.30 | O96: 0.50
B97: Итого: | C97: 545 | D97: =SUM(D92:D96) -> 20.09 | E97: =SUM(E92:E96) -> 20.08 | F97: 83.92 | G97: 560.84 | H97: 0.18 | I97: 3.55 | J97: 73.12 | K97: 1.91 | L97: 208.31 | M97: 244.57 | N97: 46.47 | O97: 2.98 | P97: 25%
B99: 6 день
A100: № 47 Сбор.рец. На прод-ию для обуч. Во всех образ.учреж-Дели -2017 | B100: Салат из свежей капусты с морковью | C100: 80 | D100: 1.05 | E100: 2.60 | F100: 5.17 | G100: 48.32 | H100: 0.02 | I100: 13.68 | J100: 0.00 | K100: 6.71 | L100: 19.98 | M100: 22.65 | N100: 12.07 | O100: 0.37
A101: ТТК | B101: Биточки рыбные с рисом отварным рассыпчатыйм,с маслом сливочным | C101: 75/150/3 | D101: 12.93 | E101: 12.41 | F101: 43.12 | G101: 304.30 | H101: 0.08 | I101: 0.50 | J101: 15.90 | K101: 3.96 | L101: 41.00 | M101: 189.24 | N101: 44.95 | O101: 1.54
A102: № 377 Сбор.рец. На прод-ию для обуч. Во всех образ.учреж-Дели 2017 | B102: Чай с сахаром, с лимоном | C102: 185/10/5 | D102: 0.11 | E102: 0.02 | F102: 10.15 | G102: 41.32 | H102: -0.00 | I102: 2.03 | J102: 0.00 | K102: 0.01 | L102: 13.25 | M102: 3.96 | N102: 2.16 | O102: 0.33
A103: Хим.состав и калорийность российских продуктов питания,табл 6, стр 144 , 2012 Дели + | B103: Хлеб ржаной | C103: 30 | D103: 1.98 | E103: 0.36 | F103: 11.88 | G103: 59.40 | H103: 0.05 | I103: 0.00 | J103: 0.00 | K103: 0.42 | L103: 8.70 | M103: 45.00 | N103: 14.10 | O103: 1.17
B104: Итого: | C104: 538 | D104: =SUM(D100:D103) -> 16.08 | E104: =SUM(E100:E103) -> 15.39 | F104: 70.32 | G104: 453.34 | H104: 0.14 | I104: 16.20 | J104: 15.90 | K104: 11.10 | L104: 82.92 | M104: 260.85 | N104: 73.28 | O104: 3.41 | P104: 20%
B105: Итого за 6 дней 1 недели: | C105: =C59+C66+C75+C89+C97+C104 -> 3241 | D105: 107.4501 | E105: 106.5897 | F105: 459.272 | G105: 3222.193333 | H105: 1.415933333 | I105: 64.3051 | J105: 279.02 | K105: 27.6015 | L105: 1212.3175 | M105: 2084.28315 | N105: 587.5188 | O105: 31.9515
B118: 2-ая неделя
B119: 1 день
A120: ТТК | B120: Сырники из творога с кашей пшенной молочной с маслом сливочным | C120: 60/180/5 | D120: 16.02 | E120: 18.13 | F120: 42.98 | G120: 386.40 | H120: 0.13 | I120: 1.02 | J120: 67.52 | K120: 1.84 | L120: 344.24 | M120: 275.54 | N120: 47.35 | O120: 1.13
A121: № 376 Сбор.рец. На прод-ию для обуч. Во всех образ.учреж-Дели 2017 | B121: Чай "Витаминный" с шиповником | C121: 185/10/5 | D121: 0.24 | E121: 0.09 | F121: 12.43 | G121: 54.20 | H121: 0.00 | I121: 50.03 | J121: 0.00 | K121: 0.19 | L121: 13.95 | M121: 3.65 | N121: 2.25 | O121: 0.42
A122: Хим.состав и калорийность российских продуктов питания табл 6 стр 134 , 2012 Дели + | B122: Хлеб пшеничный | C122: 25 | D122: 1.90 | E122: 0.20 | F122: 12.30 | G122: 58.75 | H122: 0.03 | I122: 0.00 | J122: 0.00 | K122: 0.28 | L122: 5.00 | M122: 16.25 | N122: 3.50 | O122: 0.28
A123: Хим.состав и калорийность российских продуктов питания,табл 6, стр 144 , 2012 Дели + | B123: Хлеб ржаной | C123: 30 | D123: 1.98 | E123: 0.36 | F123: 11.88 | G123: 59.40 | H123: 0.05 | I123: 0.00 | J123: 0.00 | K123: 0.42 | L123: 8.70 | M123: 45.00 | N123: 14.10 | O123: 1.17
B124: Итого: | C124: 500 | D124: =SUM(D120:D123) -> 20.14 | E124: =SUM(E120:E123) -> 18.78 | F124: 79.59 | G124: 558.75 | H124: 0.21 | I124: 51.05 | J124: 67.52 | K124: 2.72 | L124: 371.89 | M124: 340.44 | N124: 67.20 | O124: 2.99 | P124: 25%
B126: 2 день
A127: № 52 Сбор.рец. На прод-ию для обуч. Во всех образ.учреж-Дели -2017 | B127: Салат из отварной свеклы | C127: 60 | D127: 0.84 | E127: 3.61 | F127: 4.96 | G127: 55.68 | H127: 0.01 | I127: 3.99 | J127: 0.00 | K127: 1.62 | L127: 21.28 | M127: 24.38 | N127: 12.42 | O127: 0.79
A128: № 229 Сбор.рец. На прод-ию для обуч. Во всех образ.учреж-Дели 2017 | B128: Рыба, тушенная в томате с овощами | C128: 50/50 | D128: 9.05 | E128: 6.09 | F128: 3.80 | G128: 105.00 | H128: 0.05 | I128: 3.73 | J128: 5.82 | K128: 2.52 | L128: 69.07 | M128: 162.19 | N128: 48.53 | O128: 0.85
A129: № 312 Сбор.рец. На прод-ию для обуч. Во всех образ.учреж-Дели -2017 | B129: Пюре картофельное с маслом сливочным | C129: 150/3 | D129: 3.08 | E129: 6.25 | F129: 20.47 | G129: 150.45 | H129: 0.14 | I129: 18.16 | J129: 8.00 | K129: 0.20 | L129: 37.46 | M129: 87.20 | N129: 27.75 | O129: 1.01
A130: №342 Сбор.рец. На прод-ию для обуч. Во всех образ.учреж-Дели 2017 | B130: Компот из свежих яблок (75С) | C130: 200 | D130: 0.16 | E130: 0.16 | F130: 17.90 | G130: 74.60 | H130: 0.01 | I130: 0.90 | J130: 0.00 | K130: 0.08 | L130: 13.88 | M130: 4.40 | N130: 5.14 | O130: 0.92
A131: Хим.состав и калорийность российских продуктов питания табл 6 стр 134 , 2012 Дели + | B131: Хлеб пшеничный | C131: 35 | D131: 2.66 | E131: 0.28 | F131: 17.22 | G131: 82.25 | H131: 0.04 | I131: 0.00 | J131: 0.00 | K131: 0.39 | L131: 7.00 | M131: 22.75 | N131: 4.90 | O131: 0.39
B132: Итого: | C132: 548 | D132: =SUM(D127:D131) -> 15.79 | E132: =SUM(E127:E131) -> 16.39 | F132: 64.34 | G132: 467.98 | H132: 0.25 | I132: 26.78 | J132: 13.82 | K132: 4.81 | L132: 148.68 | M132: 300.91 | N132: 98.74 | O132: 3.96 | P132: 20%
B134: 3 день
A135: Хим.состав и калорийность российских продуктов питания табл 9 стр 184 , 2012 Дели + | B135: Плоды и ягоды свежие (яблоки) | C135: 100 | D135: 0.40 | E135: 0.40 | F135: 9.80 | G135: 47.00 | H135: 0.03 | I135: 10.00 | K135: 0.20 | L135: 16.00 | M135: 11.00 | N135: 9.00 | O135: 2.20
A136: № 265 Сбор.рец. На прод-ию для обуч. Во всех образ.учреж-Дели -2017 | B136: Плов из говядины с рисовой крупой | C136: 50/150 | D136: 15.95 | E136: 19.55 | F136: 39.75 | G136: 408.42 | H136: 0.04 | I136: 0.27 | J136: 0.00 | K136: 4.23 | L136: 89.33 | M136: 176.23 | N136: 40.58 | O136: 2.64
A137: № 376 Сбор.рец. На прод-ию для обуч. Во всех образ.учреж-Дели 2017 | B137: Чай с сахаром | C137: 190/10 | D137: 0.07 | E137: 0.02 | F137: 10.01 | G137: 40.00 | H137: 0.00 | I137: 0.03 | J137: 0.00 | K137: 0.00 | L137: 10.95 | M137: 2.80 | N137: 1.40 | O137: 0.27
A138: Хим.состав и калорийность российских продуктов питания табл 6 стр 134 , 2012 Дели + | B138: Хлеб пшеничный | C138: 25 | D138: 1.90 | E138: 0.20 | F138: 12.30 | G138: 58.75 | H138: 0.03 | I138: 0.00 | J138: 0.00 | K138: 0.28 | L138: 5.00 | M138: 16.25 | N138: 3.50 | O138: 0.28
A139: Хим.состав и калорийность российских продуктов питания,табл 6, стр 144 , 2012 Дели + | B139: Хлеб ржаной | C139: 20 | D139: 1.32 | E139: 0.24 | F139: 7.92 | G139: 39.60 | H139: 0.03 | I139: 0.00 | J139: 0.00 | K139: 0.28 | L139: 5.80 | M139: 30.00 | N139: 9.40 | O139: 0.78
B140: Итого: | C140: 545 | D140: =SUM(D135:D139) -> 19.64 | E140: =SUM(E135:E139) -> 20.41 | F140: 79.78 | G140: 593.77 | H140: 0.13 | I140: 10.30 | J140: 0.00 | K140: 4.98 | L140: 127.08 | M140: 236.28 | N140: 63.88 | O140: 6.16 | P140: 25%
B147: 4 день
A148: ТТК | B148: Салат из моркови | C148: 60 | D148: 0.74 | E148: 0.06 | F148: 9.98 | G148: 49.02 | H148: 0.03 | I148: 2.02 | J148: 0.00 | K148: 8.04 | L148: 15.46 | M148: 31.66 | N148: 21.63 | O148: 0.40
A149: ТТК | B149: Котлета из мяса птицы с макаронными изделиями отварными, с маслом сливочным | C149: 75/150/5 | D149: 11.45 | E149: 12.46 | F149: 31.32 | G149: 289.95 | H149: 0.10 | I149: 0.50 | J149: 23.90 | K149: 4.80 | L149: 31.70 | M149: 147.63 | N149: 38.18 | O149: 2.08
A150: № 382 Сбор.рец. На прод-ию для обуч. Во всех образ.учреж-Дели 2017 | B150: Какао с молоком | C150: 200 | D150: 1.58 | E150: 3.54 | F150: 7.60 | G150: 78.60 | H150: 0.06 | I150: 1.59 | J150: 24.40 | K150: 0.00 | L150: 151.92 | M150: 124.56 | N150: 21.34 | O150: 0.45
A151: Хим.состав и калорийность российских продуктов питания табл 6 стр 134 , 2012 Дели + | B151: Хлеб пшеничный | C151: 30 | D151: 2.28 | E151: 0.24 | F151: 14.76 | G151: 70.50 | H151: 0.03 | I151: 0.00 | J151: 0.00 | K151: 0.33 | L151: 6.00 | M151: 19.50 | N151: 4.20 | O151: 0.33
B152: Итого: | C152: 520 | D152: =SUM(D148:D151) -> 16.05 | E152: 16.30 | F152: 63.66 | G152: 488.07 | H152: 0.22 | I152: 4.10 | J152: 48.30 | K152: 13.17 | L152: 205.07 | M152: 323.35 | N152: 85.34 | O152: 3.25 | P152: 20%
B154: 5 день
A155: Хим.состав и калорийность российских продуктов питания табл 9 стр 184 , 2012 Дели + | B155: Плоды и ягоды свежие (апельсины) | C155: 180 | D155: 1.62 | E155: 0.36 | F155: 14.58 | G155: 77.40 | H155: 0.07 | I155: 108.00 | K155: 0.36 | L155: 61.20 | M155: 41.40 | N155: 23.40 | O155: 0.54
A156: № 143,241 Сбор.рец. На прод-ию для обуч. Во всех образ.учреж-Дели 2017 | B156: Овощи тушеные с мясом | C156: 50/150 | D156: 12.48 | E156: 15.68 | F156: 19.34 | G156: 271.50 | H156: 0.12 | I156: 18.77 | J156: 39.00 | K156: 4.67 | L156: 89.15 | M156: 148.63 | N156: 39.69 | O156: 2.23
A157: №349 Сбор.рец. На прод-ию для обуч. Во всех образ.учреж-Дели 2017 | B157: Компот из сухофруктов (75С) | C157: 200 | D157: 0.66 | E157: 0.09 | F157: 22.03 | G157: 92.80 | H157: 0.02 | I157: 0.73 | J157: 0.00 | K157: 0.51 | L157: 32.18 | M157: 23.44 | N157: 17.46 | O157: 0.67
A158: Хим.состав и калорийность российских продуктов питания,табл 6, стр 144 , 2012 Дели + | B158: Хлеб ржаной | C158: 20 | D158: 1.32 | E158: 0.24 | F158: 7.92 | G158: 39.60 | H158: 0.03 | I158: 0.00 | J158: 0.00 | K158: 0.28 | L158: 5.80 | M158: 30.00 | N158: 9.40 | O158: 0.78
B159: Итого: | C159: 600 | D159: =SUM(D155:D158) -> 16.08 | E159: =SUM(E155:E158) -> 16.37 | F159: 63.87 | G159: 481.30 | H159: 0.24 | I159: 127.49 | J159: 39.00 | K159: 5.82 | L159: 188.33 | M159: 243.47 | N159: 89.95 | O159: 4.21 | P159: 20%
B161: 6 день
A162: № 47 Сбор.рец. На прод-ию для обуч. Во всех образ.учреж-Дели -2017 | B162: Салат из свежей капусты с морковью | C162: 80 | D162: 1.05 | E162: 2.60 | F162: 5.17 | G162: 48.32 | H162: 0.02 | I162: 13.68 | J162: 0.00 | K162: 6.71 | L162: 19.98 | M162: 22.65 | N162: 12.07 | O162: 0.37
A163: ТТК | B163: Котлеты "Аппетитные" с кашей гречневой рассыпчатой с маслом сливочным | C163: 75/150/3 | D163: 15.16 | E163: 16.19 | F163: 44.63 | G163: 386.76 | H163: 0.26 | I163: 1.49 | J163: 71.98 | K163: 1.73 | L163: 41.59 | M163: 320.78 | N163: 154.60 | O163: 6.23
A164: № 377 Сбор.рец. На прод-ию для обуч. Во всех образ.учреж-Дели 2017 | B164: Чай с сахаром, с лимоном | C164: 185/10/5 | D164: 0.11 | E164: 0.02 | F164: 10.15 | G164: 41.32 | H164: -0.00 | I164: 2.03 | J164: 0.00 | K164: 0.01 | L164: 13.25 | M164: 3.96 | N164: 2.16 | O164: 0.33
A165: Хим.состав и калорийность российских продуктов питания табл 6 стр 134 , 2012 Дели + | B165: Хлеб пшеничный | C165: 45 | D165: 3.42 | E165: 0.36 | F165: 22.14 | G165: 105.75 | H165: 0.05 | I165: 0.00 | J165: 0.00 | K165: 0.50 | L165: 9.00 | M165: 29.25 | N165: 6.30 | O165: 0.50
B166: Итого: | C166: 553 | D166: =SUM(D162:D165) -> 19.74 | E166: =SUM(E162:E165) -> 19.17 | F166: 82.09 | G166: 582.15 | H166: 0.33 | I166: 17.20 | J166: 71.98 | K166: 8.94 | L166: 83.82 | M166: 376.63 | N166: 175.14 | O166: 7.43 | P166: 25%
B167: Итого за 6 дней 2 недели: | C167: =C124+'Меню младшие 1-4 кл'!C140+C132+C152+C159+C166 -> 3266 | D167: =D124+'Меню младшие 1-4 кл'!D140+D132+D152+D159+D166 -> 107.4305333 | E167: =E124+'Меню младшие 1-4 кл'!E140+E132+E152+E159+E166 -> 107.4183 | F167: =F124+'Меню младшие 1-4 кл'!F140+F132+F152+F159+F166 -> 433.3228 | G167: =G124+'Меню младшие 1-4 кл'!G140+G132+G152+G159+G166 -> 3172.016667 | H167: =H124+'Меню младшие 1-4 кл'!H140+H132+H152+H159+H166 -> 1.38215 | I167: =I124+'Меню младшие 1-4 кл'!I140+I132+I152+I159+I166 -> 236.9119952 | J167: =J124+'Меню младшие 1-4 кл'!J140+J132+J152+J159+J166 -> 240.6191667 | K167: =K124+'Меню младшие 1-4 кл'!K140+K132+K152+K159+K166 -> 40.43509524 | L167: =L124+'Меню младшие 1-4 кл'!L140+L132+L152+L159+L166 -> 1124.872843 | M167: =M124+'Меню младшие 1-4 кл'!M140+M132+M152+M159+M166 -> 1821.090305 | N167: =N124+'Меню младшие 1-4 кл'!N140+N132+N152+N159+N166 -> 580.2471548 | O167: =O124+'Меню младшие 1-4 кл'!O140+O132+O152+O159+O166 -> 28.0093619
B168: ВСЕГО за 12 дней: | C168: =C105+C167 -> 6507 | D168: 214.8806333 | E168: 214.008 | F168: 892.5948 | G168: 6394.21 | H168: 2.798083333 | I168: 301.2170952 | J168: 519.6391667 | K168: 68.03659524 | L168: 2337.190343 | M168: 3905.373455 | N168: 1167.765955 | O168: 59.9608619
B169: В среднем на 1 учащегося в день: | C169: =C168/12 -> 542 | D169: =D168/12 -> 17.91 | E169: 17.83 | F169: 74.38 | G169: 532.85 | H169: 0.23 | I169: 25.10 | J169: 43.30 | K169: 5.67 | L169: 194.77 | M169: 325.45 | N169: 97.31 | O169: 5.00 | P169: 20-25%

Sheet Меню старшие 5-11 кл
B12: Согласовано | I12: Разработано и утвеждено
B13: Руководитель общеобразовательного учреждения | I13: Директор ООО "АБК-ПЭЙМЕНТ"
B15: ________________________ | I15: ________________Р.Р. Рахматуллин
B20: Примерное цикличное двенадцатидневное меню
B21: Для организации питания обучающихся общеобразовательных организаций Республики Татарстан
B22: в возрасте с 12 лет и старше (5-11 классы)
B49: ПРИМЕРНОЕ ДВУХНЕДЕЛЬНОЕ МЕНЮ ДЛЯ ОБУЧАЮЩИХСЯ В ОБЩЕОБРАЗОВАТЕЛЬНЫХ ОРГАНИЗАЦИЯХ С 5 по 11 КЛАССЫ
B50: (общеобразовательные организации с режимом обучения до 6 часов)
A52: № рецептуры | B52: Наименование блюд | C52: Выход,г | D52: Белки, г | E52: Жиры, г | F52: Углеводы, г | G52: Калорийность, ккал | H52: Витамин B1, мг | I52: Витамин С, мг | J52: Витамин А, мг | K52: Витамин Е, мг | L52: Ca, мг | M52: P, мг | N52: Mg, мг | O52: Fe, мг
B53: 1-ая неделя
B54: 1 день
A55: ТТК | B55: Котлета из мяса птицы с макаронными изделиями отварными, с маслом сливочным | C55: 75/200/3 | D55: 16.45 | E55: 17.16 | F55: 36.01 | G55: 323.64 | H55: 0.10 | I55: 0.50 | J55: 23.90 | K55: 4.80 | L55: 31.70 | M55: 147.63 | N55: 38.18 | O55: 2.08
A56: №349 Сбор.рец. На прод-ию для обуч. Во всех образ.учреж-Дели 2017 | B56: Компот из сухофруктов (75С) | C56: 200 | D56: 0.66 | E56: 0.09 | F56: 22.03 | G56: 92.80 | H56: 0.02 | I56: 0.73 | J56: 0.00 | K56: 0.51 | L56: 32.18 | M56: 23.44 | N56: 17.46 | O56: 0.67
A57: Хим.состав и калорийность российских продуктов питания табл 6 стр 134 , 2012 Дели + | B57: Хлеб пшеничный | C57: 35 | D57: 2.66 | E57: 0.28 | F57: 17.22 | G57: 82.25 | H57: 0.04 | I57: 0.00 | J57: 0.00 | K57: 0.39 | L57: 7.00 | M57: 22.75 | N57: 4.90 | O57: 0.39
A58: Хим.состав и калорийность российских продуктов питания,табл 6, стр 144 , 2012 Дели + | B58: Хлеб ржаной | C58: 40 | D58: 2.64 | E58: 0.48 | F58: 15.84 | G58: 79.20 | H58: 0.07 | I58: 0.00 | J58: 0.00 | K58: 0.56 | L58: 11.60 | M58: 60.00 | N58: 18.80 | O58: 1.56
B59: Итого: | C59: 553 | D59: =SUM(D55:D58) -> 22.41 | E59: 21.91 | F59: =SUM(F55:F58) -> 91.10 | G59: 647.89 | H59: 0.22 | I59: 1.22 | J59: 23.90 | K59: 6.25 | L59: 82.48 | M59: 253.82 | N59: 79.34 | O59: 4.69 | P59: =#REF!+#REF!+#REF!+P56+#REF!+P58 ->  | Q59: =#REF!+#REF!+#REF!+Q56+#REF!+Q58 ->  | R59: 25%
B62: 2 день
A63: ТТК | B63: Сырники из творога с кашей молочной "Дружба" с маслом сливочным | C63: 60/200/3 | D63: 16.29 | E63: 18.33 | F63: 59.51 | G63: 459.80 | H63: 0.13 | I63: 1.02 | J63: 59.52 | K63: 1.82 | L63: 213.76 | M63: 274.94 | N63: 47.35 | O63: 1.13
A64: № 379 Сбор.рец. На прод-ию для обуч. Во всех образ.учреж-Дели 2017 | B64: Кофейный напиток с молоком | C64: 200 | D64: 3.2 | E64: 2.7 | F64: 6.0 | G64: 60.7 | H64: 0.0 | I64: 1.3 | J64: 20.0 | K64: 0.0 | L64: 125.8 | M64: 90.0 | N64: 14.0 | O64: 0.1
A65: Хим.состав и калорийность российских продуктов питания табл 6 стр 134 , 2012 Дели + | B65: Хлеб пшеничный | C65: 50 | D65: 3.80 | E65: 0.40 | F65: 24.60 | G65: 117.50 | H65: 0.06 | I65: 0.00 | J65: 0.00 | K65: 0.55 | L65: 10.00 | M65: 32.50 | N65: 7.00 | O65: 0.55
A66: Хим.состав и калорийность российских продуктов питания,табл 6, стр 144 , 2012 Дели + | B66: Хлеб ржаной | C66: 40 | D66: 2.64 | E66: 0.48 | F66: 15.84 | G66: 79.20 | H66: 0.07 | I66: 0.00 | J66: 0.00 | K66: 0.56 | L66: 11.60 | M66: 60.00 | N66: 18.80 | O66: 1.56
B67: Итого: | C67: 553 | D67: 22.90 | E67: =SUM(E63:E66) -> 21.89 | F67: 99.95 | G67: 713.20 | H67: =SUM(H63:H66) -> 0.29 | I67: 2.32 | J67: 79.52 | K67: 2.93 | L67: 361.14 | M67: 457.44 | N67: 87.15 | O67: 3.37 | P67: 25% | Q67: 25% | R67: 25%
B69: 3 день
A70: № 15 Сбор.рец. На прод-ию для обуч. Во всех образ.учреж-Дели -2017 | B70: Сыр порционно | C70: 10 | D70: 2.63 | E70: 2.66 | F70: 0.00 | G70: 34.33 | H70: 0.00 | I70: 0.07 | J70: 21.00 | K70: 0.04 | L70: 100.00 | M70: 60.00 | N70: 5.50 | O70: 0.07
A71: № 260 Сбор.рец. На прод-ию для обуч. Во всех образ.учреж-Дели -2017 | B71: Гуляш из говядины | C71: 50/50 | D71: 10.39 | E71: 14.79 | F71: 10.30 | G71: 221.00 | H71: 0.03 | I71: 0.92 | K71: 2.61 | L71: 61.81 | M71: 154.15 | N71: 22.03 | O71: 3.06
A72: № 302 Сбор.рец. На прод-ию для обуч. Во всех образ.учреж-Дели 2017 | B72: Каша гречневая рассыпчатая | C72: 180 | D72: 4.52 | E72: 3.75 | F72: 47.66 | G72: 256.80 | H72: 0.25 | I72: 0.00 | J72: 0.00 | K72: 0.48 | L72: 28.79 | M72: 248.82 | N72: 168.62 | O72: 5.65 | P72: 0 | Q72: 0
A73: № 377 Сбор.рец. На прод-ию для обуч. Во всех образ.учреж-Дели 2017 | B73: Чай с сахаром, с лимоном | C73: 185/10/5 | D73: 0.11 | E73: 0.02 | F73: 10.15 | G73: 41.32 | H73: -0.00 | I73: 2.03 | J73: 0.00 | K73: 0.01 | L73: 13.25 | M73: 3.96 | N73: 2.16 | O73: 0.33
A74: Хим.состав и калорийность российских продуктов питания табл 6 стр 134 , 2012 Дели + | B74: Хлеб пшеничный | C74: 20 | D74: 1.52 | E74: 0.16 | F74: 9.84 | G74: 47.00 | H74: 0.02 | I74: 0.00 | J74: 0.00 | K74: 0.22 | L74: 4.00 | M74: 13.00 | N74: 2.80 | O74: 0.22
A75: Хим.состав и калорийность российских продуктов питания,табл 6, стр 144 , 2012 Дели + | B75: Хлеб ржаной | C75: 40 | D75: 2.64 | E75: 0.48 | F75: 15.84 | G75: 79.20 | H75: 0.07 | I75: 0.00 | J75: 0.00 | K75: 0.56 | L75: 11.60 | M75: 60.00 | N75: 18.80 | O75: 1.56
B76: Итого: | C76: 550 | D76: =SUM(D70:D75) -> 21.82 | E76: =SUM(E70:E75) -> 21.86 | F76: 93.79 | G76: 679.65 | H76: 0.37 | I76: 3.02 | J76: 21.00 | K76: 3.92 | L76: 219.45 | M76: 539.93 | N76: 219.91 | O76: 10.90 | P76: 25% | Q76: 25% | R76: 25%
P78: =P72/0.9 -> 0.00 | Q78: =Q72/0.9 -> 0.00
B81: 4 день
A82: ТТК | B82: Птица запеченная | C82: 100 | D82: 10.52 | E82: 12.43 | F82: 8.65 | G82: 192 | H82: 0.06 | I82: 1.28 | J82: 51.8 | K82: 0.8 | L82: 41.26 | M82: 216.4 | N82: 23.42 | O82: 1.78
A83: № 312 Сбор.рец. На прод-ию для обуч. Во всех образ.учреж-Дели -2017 | B83: Пюре картофельное с маслом сливочным | C83: 150/3 | D83: 3.08 | E83: 6.25 | F83: 20.47 | G83: 150.45 | H83: 0.14 | I83: 18.16 | J83: 8.00 | K83: 0.20 | L83: 37.46 | M83: 87.20 | N83: 27.75 | O83: 1.01
A84: ТТК Хим.состав и калорийность российских продуктов питания,табл 8, стр 168 , 2012 Дели +, | B84: Свекла отварная дольками (доп.гарнир) | C84: 60 | D84: 1.08 | E84: 0.06 | F84: 5.88 | G84: 28.80 | H84: 0.01 | I84: 5.34 | J84: 0.00 | K84: 0.06 | L84: 27.00 | M84: 30.60 | N84: 15.60 | O84: 1.02
A85: №349 Сбор.рец. На прод-ию для обуч. Во всех образ.учреж-Дели 2017 | B85: Компот из сухофруктов (75С) | C85: 200 | D85: 0.66 | E85: 0.09 | F85: 22.03 | G85: 92.80 | H85: 0.02 | I85: 0.73 | J85: 0.00 | K85: 0.51 | L85: 32.18 | M85: 23.44 | N85: 17.46 | O85: 0.67
A86: Хим.состав и калорийность российских продуктов питания,табл 6, стр 144 , 2012 Дели + | B86: Хлеб ржаной | C86: 40 | D86: 2.64 | E86: 0.48 | F86: 15.84 | G86: 79.20 | H86: 0.07 | I86: 0.00 | J86: 0.00 | K86: 0.56 | L86: 11.60 | M86: 60.00 | N86: 18.80 | O86: 1.56
B87: Итого: | C87: =C82+C84+C85+C86+153 -> 553 | D87: =D84+D82+D83+D85+D86 -> 17.98 | E87: =E84+E82+E83+E85+E86 -> 19.31 | F87: 72.87 | G87: 543.25 | H87: 0.29 | I87: 25.51 | J87: 59.80 | K87: 2.13 | L87: 149.50 | M87: 417.64 | N87: 103.03 | O87: 6.04 | P87: 0.00 | Q87: 0.00 | R87: 20%
P88: =#REF!*100/60 ->  | Q88: =#REF!*100/60 -> 
B89: 5 день
A90: № 15 Сбор.рец. На прод-ию для обуч. Во всех образ.учреж-Дели 2017 | B90: Сыр порционно | C90: 10 | D90: 2.63 | E90: 2.66 | F90: 0.00 | G90: 34.33 | H90: 0.00 | I90: 0.07 | J90: 21.00 | K90: 0.04 | L90: 100.00 | M90: 60.00 | N90: 5.50 | O90: 0.07
A91: №279,331 Сбор.рец. На прод-ию для питания детей в дошк образоват учрежд-Дели 2017 | B91: Тефтели мясные в сметанно-томатном соусе | C91: 60/40 | D91: 7.28 | E91: 11.94 | F91: 8.36 | G91: 123.99 | H91: 0.05 | I91: 0.28 | J91: 29.62 | K91: 0.42 | L91: 20.73 | M91: 80.20 | N91: 15.52 | O91: 0.64
A92: № 203 Сбор.рец. На прод-ию для обуч. Во всех образ.учреж-Дели 2017 | B92: Макаронные изделия отварные | C92: 200 | D92: 7.36 | E92: 6.02 | F92: 35.26 | G92: 224.60 | H92: 0.07 | I92: 0.00 | J92: 0.00 | K92: 1.29 | L92: 6.48 | M92: 49.56 | N92: 28.16 | O92: 1.47
A93: ТТК | B93: Напиток из свежих фруктов (75С) | C93: 200 | D93: 0.34 | E93: 0.17 | F93: 21.46 | G93: 103.50 | H93: 0.02 | I93: 3.17 | J93: 0.00 | K93: 0.13 | L93: 16.67 | M93: 7.05 | N93: 7.78 | O93: 0.88
A94: Хим.состав и калорийность российских продуктов питания,табл 6, стр 144 , 2012 Дели + | B94: Хлеб ржаной | C94: 40 | D94: 2.64 | E94: 0.48 | F94: 15.84 | G94: 79.20 | H94: 0.07 | I94: 0.00 | J94: 0.00 | K94: 0.56 | L94: 11.60 | M94: 60.00 | N94: 18.80 | O94: 1.56
B95: Итого: | C95: 550 | D95: 18.25 | E95: 19.27 | F95: 80.42 | G95: =SUM(G90:G94) -> 565.62 | H95: 0.22 | I95: 3.52 | J95: 50.62 | K95: 2.44 | L95: 155.47 | M95: 256.81 | N95: 75.76 | O95: 4.62 | P95: =SUM(P90:P93) -> 0.00 | Q95: =SUM(Q90:Q93) -> 0.00 | R95: 20%
B97: 6 день
A98: ТТК | B98: Биточки рыбные с рисом отварным рассыпчатыйм,с маслом сливочным | C98: 75/150/3 | D98: 12.93 | E98: 12.41 | F98: 43.12 | G98: 304.30 | H98: 0.08 | I98: 0.50 | J98: 15.90 | K98: 3.96 | L98: 41.00 | M98: 189.24 | N98: 44.95 | O98: 1.54 | P98: ='Меню младшие 1-4 кл'!#REF!+'Меню младшие 1-4 кл'!P101 ->  | Q98: ='Меню младшие 1-4 кл'!#REF!+'Меню младшие 1-4 кл'!Q101 -> 
A99: № 47 Сбор.рец. На прод-ию для обуч. Во всех образ.учреж-Дели -2017 | B99: Салат из свежей капусты с морковью (доп гарнир) | C99: 80 | D99: 1.05 | E99: 2.60 | F99: 5.17 | G99: 48.32 | H99: 0.02 | I99: 13.68 | J99: 0.00 | K99: 6.71 | L99: 19.98 | M99: 22.65 | N99: 12.07 | O99: 0.37
A100: № 377 Сбор.рец. На прод-ию для обуч. Во всех образ.учреж-Дели 2017 | B100: Чай с сахаром, с лимоном | C100: 185/10/5 | D100: 0.11 | E100: 0.02 | F100: 10.15 | G100: 41.32 | H100: -0.00 | I100: 2.03 | J100: 0.00 | K100: 0.01 | L100: 13.25 | M100: 3.96 | N100: 2.16 | O100: 0.33
A101: Хим.состав и калорийность российских продуктов питания,табл 6, стр 144 , 2012 Дели + | B101: Хлеб ржаной | C101: 50 | D101: 3.30 | E101: 0.60 | F101: 19.80 | G101: 99.00 | H101: 0.09 | I101: 0.00 | J101: 0.00 | K101: 0.70 | L101: 14.50 | M101: 75.00 | N101: 23.50 | O101: 1.95
B102: Итого: | C102: 558 | D102: =SUM(D98:D101) -> 17.40 | E102: 17.63 | F102: =SUM(F98:F101) -> 78.24 | G102: 516.94 | H102: =SUM(H98:H101) -> 0.18 | I102: 16.20 | J102: 15.90 | K102: 11.38 | L102: 88.72 | M102: 290.85 | N102: 82.68 | O102: 4.19 | R102: 20%
B103: Итого за 6 дней 1 недели: | C103: =C59+C67+C76+C87+C102+C95 -> 3317 | D103: 120.75 | E103: 121.87 | F103: 516.39 | G103: 3666.56 | H103: 1.58 | I103: 51.79 | J103: 250.74 | K103: 29.05 | L103: 1056.76 | M103: 2216.49 | N103: 647.87 | O103: 33.81 | P103: =P59+P67+P76+P87+#REF!+P95 ->  | Q103: =Q59+Q67+Q76+Q87+#REF!+Q95 -> 
A110: № рецептуры | B110: Наименование блюд | C110: Выход,г | D110: Белки, г | E110: Жиры, г | F110: Углеводы, г | G110: Калорийность, ккал | H110: Витамин B1, мг | I110: Витамин С, мг | J110: Витамин А, мг | K110: Витамин Е, мг | L110: Ca, мг | M110: P, мг | N110: Mg, мг | O110: Fe, мг
B111: 2-ая неделя
B112: 1 день
A113: ТТК | B113: Сырники из творога с кашей пшенной молочной с маслом сливочным | C113: 60/220/3 | D113: 17.90 | E113: 21.21 | F113: 47.96 | G113: 442.60 | H113: 0.15 | I113: 1.21 | J113: 62.48 | K113: 1.83 | L113: 239.96 | M113: 305.69 | N113: 54.79 | O113: 1.28 | P113: ='Меню младшие 1-4 кл'!#REF!/0.9 ->  | Q113: ='Меню младшие 1-4 кл'!#REF!/0.9 -> 
A114: № 376 Сбор.рец. На прод-ию для обуч. Во всех образ.учреж-Дели 2017 | B114: Чай "Витаминный" с шиповником | C114: 185/10/5 | D114: 0.24 | E114: 0.09 | F114: 12.43 | G114: 54.20 | H114: 0.00 | I114: 50.03 | J114: 0.00 | K114: 0.19 | L114: 13.95 | M114: 3.65 | N114: 2.25 | O114: 0.42
A115: Хим.состав и калорийность российских продуктов питания табл 6 стр 134 , 2012 Дели + | B115: Хлеб пшеничный | C115: 30 | D115: 2.28 | E115: 0.24 | F115: 14.76 | G115: 70.50 | H115: 0.03 | I115: 0.00 | J115: 0.00 | K115: 0.33 | L115: 6.00 | M115: 19.50 | N115: 4.20 | O115: 0.33
A116: Хим.состав и калорийность российских продуктов питания,табл 6, стр 144 , 2012 Дели + | B116: Хлеб ржаной | C116: 40 | D116: 2.64 | E116: 0.48 | F116: 15.84 | G116: 79.20 | H116: 0.07 | I116: 0.00 | J116: 0.00 | K116: 0.56 | L116: 11.60 | M116: 60.00 | N116: 18.80 | O116: 1.56
B117: Итого: | C117: 553 | D117: =SUM(D113:D116) -> 23.06 | E117: =SUM(E113:E116) -> 22.02 | F117: 90.99 | G117: 646.50 | H117: 0.25 | I117: 51.24 | J117: 62.48 | K117: 2.91 | L117: 271.51 | M117: 388.84 | N117: 80.04 | O117: 3.59 | R117: 25%
B119: 2 день
A120: № 229 Сбор.рец. На прод-ию для обуч. Во всех образ.учреж-Дели 2017 | B120: Рыба, тушенная в томате с овощами | C120: 50/50 | D120: 9.05 | E120: 6.09 | F120: 3.80 | G120: 105.00 | H120: 0.05 | I120: 3.73 | J120: 5.82 | K120: 2.52 | L120: 69.07 | M120: 162.19 | N120: 48.53 | O120: 0.85
A121: № 312 Сбор.рец. На прод-ию для обуч. Во всех образ.учреж-Дели -2017 | B121: Пюре картофельное | C121: 180/5 | D121: 3.71 | E121: 9.38 | F121: 24.59 | G121: 197.70 | H121: 0.17 | I121: 21.79 | J121: 0.00 | K121: 0.22 | L121: 44.37 | M121: 103.91 | N121: 33.30 | O121: 1.21 | P121: 1.2114
A122: №342 Сбор.рец. На прод-ию для обуч. Во всех образ.учреж-Дели 2017 | B122: Компот из свежих яблок (75С) | C122: 200 | D122: 0.16 | E122: 0.16 | F122: 17.90 | G122: 74.60 | H122: 0.01 | I122: 0.90 | J122: 0.00 | K122: 0.08 | L122: 13.88 | M122: 4.40 | N122: 5.14 | O122: 0.92
A123: Хим.состав и калорийность российских продуктов питания табл 6 стр 134 , 2012 Дели + | B123: Хлеб пшеничный | C123: 30 | D123: 2.28 | E123: 0.24 | F123: 14.76 | G123: 70.50 | H123: 0.03 | I123: 0.00 | J123: 0.00 | K123: 0.33 | L123: 6.00 | M123: 19.50 | N123: 4.20 | O123: 0.33
A124: Хим.состав и калорийность российских продуктов питания,табл 6, стр 144 , 2012 Дели + | B124: Хлеб ржаной | C124: 40 | D124: 2.64 | E124: 0.48 | F124: 15.84 | G124: 79.20 | H124: 0.07 | I124: 0.00 | J124: 0.00 | K124: 0.56 | L124: 11.60 | M124: 60.00 | N124: 18.80 | O124: 1.56
B125: Итого: | C125: 555 | D125: =D120+D121+D122+D123+D124 -> 17.84 | E125: =E120+E121+E122+E123+E124 -> 16.35 | F125: 76.89 | G125: 527.00 | H125: 0.33 | I125: 26.42 | J125: 5.82 | K125: 3.71 | L125: 144.92 | M125: 350.00 | N125: 109.97 | O125: 4.87 | P125: 1.21 | Q125: 0.00 | R125: 20%
B127: 3 день
A128: № 265 Сбор.рец. На прод-ию для обуч. Во всех образ.учреж-Дели -2017 | B128: Плов из говядины с рисовой крупой | C128: 50/200 | D128: 18.97 | E128: 23.12 | F128: 51.79 | G128: 509.80 | H128: 0.08 | I128: 2.31 | J128: 0.00 | K128: 5.25 | L128: 22.04 | M128: 285.70 | N128: 63.75 | O128: 4.13
A129: № 376 Сбор.рец. На прод-ию для обуч. Во всех образ.учреж-Дели 2017 | B129: Чай с сахаром | C129: 190/10 | D129: 0.07 | E129: 0.02 | F129: 10.01 | G129: 40.00 | H129: 0.00 | I129: 0.03 | J129: 0.00 | K129: 0.00 | L129: 10.95 | M129: 2.80 | N129: 1.40 | O129: 0.27
A130: Хим.состав и калорийность российских продуктов питания табл 6 стр 134 , 2012 Дели + | B130: Хлеб пшеничный | C130: 50 | D130: 3.80 | E130: 0.40 | F130: 24.60 | G130: 117.50 | H130: 0.06 | I130: 0.00 | J130: 0.00 | K130: 0.55 | L130: 10.00 | M130: 32.50 | N130: 7.00 | O130: 0.55
A131: Хим.состав и калорийность российских продуктов питания,табл 6, стр 144 , 2012 Дели + | B131: Хлеб ржаной | C131: 50 | D131: 3.30 | E131: 0.60 | F131: 19.80 | G131: 99.00 | H131: 0.09 | I131: 0.00 | J131: 0.00 | K131: 0.70 | L131: 14.50 | M131: 75.00 | N131: 23.50 | O131: 1.95
B132: Итого: | C132: 550 | D132: 23.14 | E132: =SUM(E128:E131) -> 24.14 | F132: 100.20 | G132: 706.30 | H132: 0.22 | I132: 2.34 | J132: 0.00 | K132: 6.50 | L132: 57.49 | M132: 396.00 | N132: 95.65 | O132: 6.90 | P132: =#REF!+P128+P129+P130+P131 ->  | Q132: =#REF!+Q128+Q129+Q130+Q131 ->  | R132: 25%
B134: 4 день
A135: ТТК | B135: Салат из моркови | C135: 100 | D135: 1.73 | E135: 3.09 | F135: 16.63 | G135: 81.70 | H135: 0.06 | I135: 3.36 | J135: 0.00 | K135: 13.40 | L135: 25.76 | M135: 52.77 | N135: 36.05 | O135: 0.66
A136: ТТК | B136: Котлета из мяса птицы с макаронными изделиями отварными, с маслом сливочным | C136: 75/180/3 | D136: 13.15 | E136: 13.36 | F136: 36.01 | G136: 323.64 | H136: 0.10 | I136: 0.50 | J136: 23.90 | K136: 4.80 | L136: 31.70 | M136: 147.63 | N136: 38.18 | O136: 2.08
A137: № 376 Сбор.рец. На прод-ию для обуч. Во всех образ.учреж-Дели 2017 | B137: Чай "Витаминный" с шиповником | C137: 185/10/5 | D137: 0.24 | E137: 0.09 | F137: 12.43 | G137: 54.20 | H137: 0.00 | I137: 50.03 | J137: 0.00 | K137: 0.19 | L137: 13.95 | M137: 3.65 | N137: 2.25 | O137: 0.42
A138: Хим.состав и калорийность российских продуктов питания,табл 6, стр 144 , 2012 Дели + | B138: Хлеб ржаной | C138: 30 | D138: 1.98 | E138: 0.36 | F138: 11.88 | G138: 59.40 | H138: 0.05 | I138: 0.00 | J138: 0.00 | K138: 0.42 | L138: 8.70 | M138: 45.00 | N138: 14.10 | O138: 1.17
B139: Итого: | C139: 588 | D139: =D135+D136+D137+D138 -> 17.10 | E139: 17.90 | F139: =F135+F136+F137+F138 -> 76.95 | G139: 518.94 | H139: 0.21 | I139: 53.89 | J139: 23.90 | K139: 18.81 | L139: 80.11 | M139: 249.05 | N139: 90.57 | O139: 4.32 | P139: 0.00 | Q139: 0.00 | R139: 20%
B141: 5 день
A142: № 143,241 Сбор.рец. На прод-ию для обуч. Во всех образ.учреж-Дели 2017 | B142: Овощи тушеные с мясом | C142: 50/200 | D142: 14.48 | E142: 20.80 | F142: 25.34 | G142: 341.50 | H142: 0.12 | I142: 18.77 | J142: 39.00 | K142: 4.67 | L142: 89.15 | M142: 148.63 | N142: 39.69 | O142: 2.23
A143: №349 Сбор.рец. На прод-ию для обуч. Во всех образ.учреж-Дели 2017 | B143: Компот из сухофруктов (75С) | C143: 200 | D143: 0.66 | E143: 0.09 | F143: 22.03 | G143: 92.80 | H143: 0.02 | I143: 0.73 | J143: 0.00 | K143: 0.51 | L143: 32.18 | M143: 23.44 | N143: 17.46 | O143: 0.67
A144: Хим.состав и калорийность российских продуктов питания табл 6 стр 134 , 2012 Дели + | B144: Хлеб пшеничный | C144: 50 | D144: 3.80 | E144: 0.40 | F144: 24.60 | G144: 117.50 | H144: 0.06 | I144: 0.00 | J144: 0.00 | K144: 0.55 | L144: 10.00 | M144: 32.50 | N144: 7.00 | O144: 0.55
A145: Хим.состав и калорийность российских продуктов питания,табл 6, стр 144 , 2012 Дели + | B145: Хлеб ржаной | C145: 50 | D145: 3.30 | E145: 0.60 | F145: 19.80 | G145: 99.00 | H145: 0.09 | I145: 0.00 | J145: 0.00 | K145: 0.70 | L145: 14.50 | M145: 75.00 | N145: 23.50 | O145: 1.95
B146: Итого: | C146: =250+C143+C144+C145 -> 550 | D146: =SUM(D142:D145) -> 22.24 | E146: =SUM(E142:E145) -> 21.89 | F146: 91.77 | G146: 650.80 | H146: 0.28 | I146: 19.49 | J146: 39.00 | K146: 6.43 | L146: 145.83 | M146: 279.57 | N146: 87.65 | O146: 5.39 | P146: =#REF!+P142+P143+P144+P145 ->  | Q146: =#REF!+Q142+Q143+Q144+Q145 ->  | R146: 25%
B148: 6 день
A149: № 47 Сбор.рец. На прод-ию для обуч. Во всех образ.учреж-Дели -2017 | B149: Салат из свежей капусты с морковью | C149: 100 | D149: 1.75 | E149: 4.33 | F149: 8.62 | G149: 90.53 | H149: 0.03 | I149: 22.80 | J149: 0.00 | K149: 11.19 | L149: 33.29 | M149: 37.74 | N149: 20.12 | O149: 0.62 | P149: 1.03824
A150: ТТК | B150: Котлеты "Аппетитные" с кашей гречневой рассыпчатой с маслом сливочным | C150: 75/150/3 | D150: 15.16 | E150: 16.19 | F150: 44.63 | G150: 386.76 | H150: 0.26 | I150: 1.49 | J150: 71.98 | K150: 1.73 | L150: 41.59 | M150: 320.78 | N150: 154.60 | O150: 6.23
A151: № 377 Сбор.рец. На прод-ию для обуч. Во всех образ.учреж-Дели 2017 | B151: Чай с сахаром, с лимоном | C151: 185/10/5 | D151: 0.11 | E151: 0.02 | F151: 10.15 | G151: 41.32 | H151: -0.00 | I151: 2.03 | J151: 0.00 | K151: 0.01 | L151: 13.25 | M151: 3.96 | N151: 2.16 | O151: 0.33
A152: Хим.состав и калорийность российских продуктов питания,табл 6, стр 144 , 2012 Дели + | B152: Хлеб ржаной | C152: 25 | D152: 1.65 | E152: 0.30 | F152: 9.90 | G152: 49.50 | H152: 0.04 | I152: 0.00 | J152: 0.00 | K152: 0.35 | L152: 7.25 | M152: 37.50 | N152: 11.75 | O152: 0.98
B153: Итого: | C153: 553 | D153: =D149++D150+D151+D152 -> 18.67 | E153: 19.24 | F153: =F149++F150+F151+F152 -> 73.30 | G153: 568.11 | H153: 0.33 | I153: 26.32 | J153: 71.98 | K153: 13.27 | L153: 95.39 | M153: 399.98 | N153: 188.64 | O153: 8.16 | P153: 1.04 | Q153: 0.00 | R153: 20%
B154: Итого за 6 дней 2 недели: | C154: =C117+C132+C125+C139+C146+C153 -> 3349 | D154: 122.0453333 | E154: 121.544 | F154: 510.0976667 | G154: 3617.653333 | H154: 1.62155 | I154: 179.6960286 | J154: 203.1791667 | K154: 51.6270619 | L154: 795.2439762 | M154: 2063.435905 | N154: 652.5148214 | O154: 33.2346619
B155: ВСЕГО за 12 дней: | C155: =C59+C67+C76+C87+C102+C95+C117+C132+C125+C139+C146+C153 -> 6666 | D155: 242.7974333 | E155: 243.4115 | F155: 1026.483667 | G155: 7284.21 | H155: 3.200616667 | I155: 231.4851286 | J155: 453.9191667 | K155: 80.6730619 | L155: 1851.999776 | M155: 4279.922505 | N155: 1300.380621 | O155: 67.0446619
B156: В среднем на 1 учащегося в день: | C156: =C155/12 -> 556 | D156: =D155/12 -> 20.23 | E156: =E155/12 -> 20.28 | F156: 85.54 | G156: 607.02 | H156: 0.27 | I156: 19.29 | J156: 37.83 | K156: 6.72 | L156: 154.33 | M156: 356.66 | N156: 108.37 | O156: 5.59 | P156: 0 | Q156: 0 | R156: 20-25%

Sheet Меню сокращенное
A1: ПРИМЕРНОЕ ДВУХНЕДЕЛЬНОЕ МЕНЮ ДЛЯ ОБУЧАЮЩИХСЯ В ОБЩЕОБРАЗОВАТЕЛЬНЫХ ОРГАНИЗАЦИЯХ (сезон осенне-зимний)
A3: ГОРЯЧИЙ ЗАВТРАК | M3: Мл.кл 74,77 рублей / Ст.кл 69,43 руб.
A4: 1-ая неделя
A5: 1 день | D5: 2 день | G5: 3 день | J5: 4 день | M5: 5 день | P5: 6 день
A6: Наименование блюд | B6: Выход,г | D6: Наименование блюд | E6: Выход,г | G6: Наименование блюд | H6: Выход,г | J6: Наименование блюд | K6: Выход,г | M6: Наименование блюд | N6: Выход,г | P6: Наименование блюд | Q6: Выход,г
B7: 7-11 лет | C7: 12 лет и ст | E7: 7-11 лет | F7: 12 лет и ст | H7: 7-11 лет | I7: 12 лет и ст | K7: 7-11 лет | L7: 12 лет и ст | N7: 7-11 лет | O7: 12 лет и ст | Q7: 7-11 лет
A8: Салат из моркови с яблоками | B8: 60 | C8: нет | D8: Плоды и ягоды свежие (яблоки) | E8: 100 | F8: нет | G8: Сыр порционно | H8: 10 | I8: 10 | J8: Свекла отварная дольками/ Свекла отварная дольками (доп гарнир) ст кл | K8: 60 | L8: 60 | M8: Сыр порционно | N8: 15 | O8: 10 | P8: Салат из свежей капусты с морковью | Q8: 80 | R8: 80
A9: Котлета из мяса птицы | B9: 75 | C9: 75 | D9: Сырник из творога мл.кл | E9: 60 | F9: 60 | G9: Гуляш из говядины | H9: 50/50 | I9: 50/50 | J9: Птица запеченная | K9: 100 | L9: 100 | M9: Тефтели мясные в сметанно-томатном соусе | N9: 60/40 | O9: 60/40 | P9: Биточки рыбные(минтай) мл.кл./ Биточки рыбные ст.кл. | Q9: 75 | R9: 75
A10: Макаронные изделия с маслом сливочным | B10: 150/5 | C10: 200/3 | D10: Каша вязкая "Дружба" молочная с маслом сливочным | E10: 150/5 | F10: 200/3 | G10: Каша гречневая рассыпчатая | H10: 150 | I10: 180 | J10: Пюре картофельное с маслом сливочным | K10: 150/3 | L10: 150/3 | M10: Макаронные изделия отварные с маслом сливочным мл.кл. /Макаронные изделия отварные ст.кл. | N10: 180/5 | O10: 200 | P10: Рис отварный рассыпчатый с маслом сливочным | Q10: 150/3 | R10: 150/3
A11: Компот из сухофруктов (75С) (сахара 10г) | B11: 200 | C11: 200 | D11: Кофейный напиток (сахара 10г) | E11: 200 | F11: 200 | G11: Чай с сахаром,с лимоном | H11: 185/10/5 | I11: 185/10/5 | J11: Компот из сухофруктов (75С) (сахара 10г) | K11: 200 | L11: 200 | M11: Напиток из свежих фруктов (75С) (сахар 20г) | N11: 200 | O11: 200 | P11: Чай с сахаром,с лимоном | Q11: 185/10/5 | R11: 185/10/5
A12: Хлеб пшеничный | B12: нет | C12: 35 | D12: Хлеб пшеничный | E12: нет | F12: 50 | G12: Хлеб пшеничный | H12: нет | I12: 20 | J12: Хлеб пшеничный | K12: 30 | L12: нет | M12: Хлеб пшеничный | N12: 45 | O12: нет
A13: Хлеб ржаной | B13: 30 | C13: 40 | D13: Хлеб ржаной | E13: 30 | F13: 40 | G13: Хлеб ржаной | H13: 50 | I13: 40 | J13: Хлеб ржаной | K13: 40 | L13: 40 | M13: Хлеб ржаной | N13: нет | O13: 40 | P13: Хлеб ржаной | Q13: 30 | R13: 50
A14: Итого: | B14: 520 | C14: 553 | D14: Итого: | E14: 545 | F14: 553 | G14: Итого: | H14: 510 | I14: 550 | J14: Итого: | K14: 583 | L14: 553 | M14: Итого: | N14: 545 | O14: 550 | P14: Итого: | Q14: 538 | R14: 558
A15: Белки,г | B15: 14.730 | C15: 22.410 | E15: 16.100 | F15: 22.900 | H15: 20.200 | I15: 21.820 | K15: 20.260 | L15: 17.980 | N15: 20.090 | O15: 18.250 | Q15: 16.080 | R15: 17.400
A16: Жиры,г | B16: 15.920 | C16: 21.910 | E16: 15.290 | F16: 21.890 | H16: 20.360 | I16: 21.860 | K16: 19.550 | L16: 19.310 | N16: 20.080 | O16: 19.270 | Q16: 15.390 | R16: 17.630
A17: Углеводы,г | B17: 70.350 | C17: 91.100 | E17: 67.080 | F17: 99.950 | H17: 79.970 | I17: 93.790 | K17: 87.630 | L17: 72.870 | N17: 83.920 | O17: 80.420 | Q17: 70.320 | R17: 78.240
A18: ЭЦ,ккал | B18: 493.060 | C18: 647.890 | E18: 491.550 | F18: 713.200 | H18: 609.650 | I18: 679.650 | K18: 613.750 | L18: 543.250 | N18: 560.840 | O18: 565.620 | Q18: 453.340 | R18: 516.940
A20: 2-ая неделя
A21: 1 день | D21: 2 день | G21: 3 день | J21: 4 день | M21: 5 день | P21: 6 день
A22: Наименование блюд | B22: Выход,г | D22: Наименование блюд | E22: Выход,г | G22: Наименование блюд | H22: Выход,г | J22: Наименование блюд | K22: Выход,г | M22: Наименование блюд | N22: Выход,г | P22: Наименование блюд | Q22: Выход,г
B23: 7-11 лет | C23: 12 лет и ст | E23: 7-11 лет | F23: 12 лет и ст | H23: 7-11 лет | I23: 12 лет и ст | K23: 7-11 лет | L23: 12 лет и ст | N23: 7-11 лет | O23: 12 лет и ст | Q23: 7-11 лет | R23: 12 лет и ст
D24: Салат из отварной свеклы | E24: 60 | F24: нет | G24: Плоды и ягоды свежие (яблоки) | H24: 100 | I24: нет | J24: Салат из моркови | K24: 60 | L24: 100 | M24: Плоды и ягоды свежие (апельсин) | N24: 180 | O24: нет | P24: Салат из свежей капусты с морковью | Q24: 80 | R24: 100
A25: Сырник из творога | B25: 60 | C25: 60 | D25: Рыба, тушеная в томате с овощами | E25: 50/50 | F25: 50/50 | G25: Плов из говядины с рисовой крупой | H25: 50/150 | I25: 50/200 | J25: Котлета из мяса птицы | K25: 75 | L25: 75 | M25: Овощи тушеные с мясом | N25: 50/150 | O25: 50/200 | P25: Котлеты "Аппетитные" | Q25: 75 | R25: 75
A26: Каша пшенная молочная с маслом сливочным мл.кл. /Каша пшенная молочная ст.кл. | B26: 180/5 | C26: 220/3 | D26: Пюре картофельное с маслом сливочным | E26: 150/3 | F26: 180/5 | J26: Макаронные изделия отварные с маслом сливочным мл.кл. /макаронные изделия отварные ст.кл. | K26: 150/5 | L26: 180/3 | P26: Каша гречневая рассыпчатая с маслом сливочным | Q26: 150/3 | R26: 150/3
A27: Чай "Витаминный" с шиповником | B27: 185/10/5 | C27: 185/10/5 | D27: Компот из свежих яблок (75С)(сахара 10г) | E27: 200 | F27: 200 | G27: Чай с сахаром | H27: 190/10 | I27: 190/10 | J27: Какао с молоком (сахар 10г) /Чай "Витаминный" с шиповником ст.кл. | K27: 200 | L27: 185/10/5 | M27: Компот из сухофруктов (75С) (сахара 10г) | N27: 200 | O27: 200 | P27: Чай с сахаром,с лимоном | Q27: 185/10/5 | R27: 185/10/5
A28: Хлеб пшеничный | B28: 25 | C28: 30 | D28: Хлеб пшеничный | E28: 35 | F28: 30 | G28: Хлеб пшеничный | H28: 25 | I28: 50 | J28: Хлеб пшеничный | K28: 30 | L28: нет | M28: Хлеб пшеничный | N28: 20 | O28: 50 | P28: Хлеб пшеничный | Q28: 45 | R28: нет
A29: Хлеб ржаной | B29: 30 | C29: 40 | D29: Хлеб ржаной | E29: нет | F29: 40 | G29: Хлеб ржаной | H29: 20 | I29: 50 | J29: Хлеб ржаной | K29: нет | L29: 30 | M29: Хлеб ржаной | N29: нет | O29: 50 | P29: Хлеб ржаной | Q29: нет | R29: 25
A30: Итого: | B30: 500 | C30: 553 | D30: Итого: | E30: 548 | F30: 555 | G30: Итого: | H30: 545 | I30: 550 | J30: Итого: | K30: 520 | L30: 588 | M30: Итого: | N30: 600 | O30: 550 | P30: Итого: | Q30: 553 | R30: 553
A31: Белки,г | B31: 20.140 | C31: 23.060 | E31: 15.790 | F31: 17.840 | H31: 19.640 | I31: 23.140 | K31: 16.050 | L31: 17.100 | N31: 16.080 | O31: 22.240 | Q31: 19.740 | R31: 18.670
A32: Жиры,г | B32: 18.780 | C32: 22.020 | E32: 16.390 | F32: 16.350 | H32: 20.410 | I32: 24.140 | K32: 16.300 | L32: 17.900 | N32: 16.370 | O32: 21.890 | Q32: 19.170 | R32: 19.240
A33: Углеводы,г | B33: 79.590 | C33: 90.990 | E33: 64.340 | F33: 76.890 | H33: 79.780 | I33: 100.200 | K33: 63.660 | L33: 76.950 | N33: 63.870 | O33: 91.770 | Q33: 82.090 | R33: 73.300
A34: ЭЦ,ккал | B34: 558.750 | C34: 646.500 | E34: 467.980 | F34: 527.000 | H34: 593.770 | I34: 706.300 | K34: 488.070 | L34: 518.940 | N34: 481.300 | O34: 650.800 | Q34: 582.150 | R34: 568.110
